bitfinex/quotes_BTCUSD_20250213
["timestamp","ask_amount","ask_price","bid_price","bid_amount"]
[1739488082031,0.1554096,96585.0,96584.0,0.003]
[1739488082717,0.1554096,96585.0,96584.0,0.001]
[1739488082850,0.1564096,96585.0,96584.0,0.001]
[1739488083046,0.155319,96575.0,96574.0,6.5e-07]
[1739488084952,0.0011066,96585.0,96580.0,0.20708]
[1739488085190,0.0011066,96585.0,96584.0,0.155305]
[1739488085191,0.0001066,96585.0,96584.0,0.155305]
[1739488085426,0.0001066,96585.0,96581.0,0.11812442]
[1739488085925,0.0001066,96585.0,96582.0,0.22269777]
[1739488086167,0.0001066,96585.0,96584.0,0.155305]
[1739488086585,0.0001066,96585.0,96582.0,0.01562077]
[1739488087469,0.0001066,96585.0,96584.0,0.155305]
[1739488087775,0.0001066,96585.0,96584.0,0.40884396]
[1739488087973,0.0001066,96585.0,96584.0,0.42342942]
[1739488088973,0.0001066,96585.0,96584.0,0.42742942]
[1739488089566,0.0001066,96585.0,96584.0,0.42842942]
[1739488089797,0.0001066,96585.0,96584.0,0.43042942]
[1739488089980,0.155282,96599.0,96593.0,0.15529]
[1739488090135,0.0001064,96614.0,96593.0,0.10250365]
[1739488090136,0.207039,96600.0,96593.0,0.10250365]
[1739488090344,0.12145194,96613.0,96594.0,0.01553746]
[1739488090529,0.155282,96599.0,96594.0,0.01553746]
[1739488090933,0.207015,96611.0,96593.0,0.10250365]
[1739488090934,0.155279,96601.0,96593.0,0.10250365]
[1739488091151,0.155279,96601.0,96595.0,0.01553746]
[1739488091358,0.155279,96600.0,96594.0,0.155288]
[1739488091568,0.207015,96611.0,96596.0,0.01553746]
[1739488091792,0.15528,96600.0,96593.0,0.25779365]
[1739488092241,0.15528,96600.0,96597.0,0.01553746]
[1739488092454,0.15528,96600.0,96593.0,0.26079365]
[1739488092455,0.155289,96594.0,96593.0,0.003]
[1739488092654,0.155296,96590.0,96584.0,0.007]
[1739488092792,0.12145194,96613.0,96586.0,0.15]
[1739488092991,0.155281,96599.0,96593.0,0.004]
[1739488093261,0.155286,96596.0,96593.0,0.006]
[1739488093644,0.155286,96596.0,96593.0,0.004]
[1739488094374,0.155286,96596.0,96590.0,0.305294]
[1739488094522,0.155286,96596.0,96593.0,0.002]
[1739488095354,0.207043,96598.0,96593.0,0.006]
[1739488095738,0.155284,96597.0,96593.0,0.006]
[1739488096347,0.155284,96597.0,96593.0,0.004]
[1739488096757,0.12145194,96613.0,96593.0,0.006]
[1739488096930,0.155285,96597.0,96593.0,0.004]
[1739488097331,0.155285,96597.0,96593.0,0.006]
[1739488097561,0.155285,96597.0,96593.0,0.002]
[1739488097562,0.207047,96596.0,96593.0,0.002]
[1739488097766,0.155289,96594.0,96593.0,0.005]
[1739488098180,0.155289,96594.0,96593.0,0.002]
[1739488098652,0.0001065,96597.0,96593.0,0.005]
[1739488098858,0.0001065,96597.0,96593.0,0.01853319]
[1739488099034,0.155288,96595.0,96593.0,0.01553319]
[1739488099240,0.207047,96596.0,96593.0,0.005]
[1739488099533,0.155289,96594.0,96593.0,0.003]
[1739488099782,0.155289,96594.0,96593.0,0.004]
[1739488100397,0.155289,96594.0,96593.0,0.005]
[1739488100560,0.155289,96594.0,96593.0,0.002]
[1739488100765,0.155294,96591.0,96586.0,0.15]
[1739488101058,0.0001065,96597.0,96586.0,0.15]
[1739488101262,0.0001065,96597.0,96588.0,0.207065]
[1739488101468,0.0001065,96597.0,96596.0,0.155285]
[1739488101664,0.0001065,96597.0,96593.0,0.003]
[1739488101845,0.0001065,96597.0,96593.0,0.15829]
[1739488102023,0.0001065,96597.0,96593.0,0.15529]
[1739488102260,0.0001065,96597.0,96596.0,0.155285]
[1739488103264,0.0001065,96597.0,96594.0,0.207051]
[1739488103645,0.0001065,96597.0,96596.0,0.158285]
[1739488104406,0.0001065,96597.0,96596.0,0.155285]
[1739488104618,0.0001065,96597.0,96596.0,0.17081819]
[1739488104981,0.0001065,96597.0,96596.0,0.17581819]
[1739488105784,0.0001065,96597.0,96596.0,0.02053319]
[1739488106412,0.0001065,96597.0,96596.0,0.02353319]
[1739488106815,0.0001065,96597.0,96596.0,0.17881819]
[1739488107332,0.0001065,96597.0,96596.0,0.02353319]
[1739488107852,0.1553905,96597.0,96596.0,0.02353319]
[1739488108056,0.0001065,96597.0,96596.0,0.02353319]
[1739488110968,0.0001065,96597.0,96596.0,0.17881819]
[1739488113044,0.0001065,96597.0,96596.0,0.02353319]
[1739488114265,0.0001065,96597.0,96596.0,0.008]
[1739488115309,0.0001065,96597.0,96596.0,0.02353319]
[1739488115858,0.0001065,96597.0,96596.0,0.17881819]
[1739488116509,0.0001065,96597.0,96596.0,0.02353319]
[1739488116894,0.0001065,96597.0,96596.0,0.163285]
[1739488117052,0.0001065,96597.0,96596.0,0.17881819]
[1739488118431,0.0001065,96597.0,96596.0,0.02353319]
[1739488119412,0.0001065,96597.0,96596.0,0.17881819]
[1739488119994,0.0001065,96597.0,96596.0,0.02353319]
[1739488121036,0.0001065,96597.0,96596.0,0.17881819]
[1739488121977,0.0001065,96597.0,96596.0,0.02375663]
[1739488122179,0.0001065,96597.0,96596.0,0.17904163]
[1739488123002,0.0001065,96597.0,96596.0,0.02375663]
[1739488123548,0.1553905,96597.0,96596.0,0.02375663]
[1739488123847,0.0001065,96597.0,96596.0,0.17904163]
[1739488124049,0.0001065,96597.0,96596.0,0.02219882]
[1739488124180,0.0001065,96597.0,96596.0,0.28102259]
[1739488124381,0.0001065,96597.0,96596.0,0.31235822]
[1739488125004,0.0001065,96597.0,96596.0,0.38665822]
[1739488125218,0.0001065,96597.0,96596.0,0.38565822]
[1739488125537,0.0001065,96597.0,96596.0,0.38665822]
[1739488125742,0.0001065,96597.0,96596.0,0.38565822]
[1739488125912,0.0001065,96597.0,96596.0,0.38365822]
[1739488126116,0.0001065,96597.0,96596.0,0.39665822]
[1739488130212,0.0001065,96597.0,96596.0,0.88948197]
[1739488131098,0.0001065,96597.0,96596.0,0.89246467]
[1739488131442,0.0001065,96597.0,96596.0,0.89946467]
[1739488131896,0.0001065,96597.0,96596.0,0.88646467]
[1739488132095,0.0001065,96597.0,96596.0,0.70419697]
[1739488132300,0.0001065,96597.0,96596.0,0.86648197]
[1739488132522,0.0001065,96597.0,96596.0,0.86048197]
[1739488133360,0.0001065,96597.0,96596.0,0.86648197]
[1739488133560,0.0001065,96597.0,96596.0,0.86048197]
[1739488133786,0.0001065,96597.0,96596.0,0.70519697]
[1739488133966,0.0001065,96597.0,96596.0,0.71019697]
[1739488134263,0.0001065,96597.0,96596.0,0.86548197]
[1739488134475,0.0001065,96597.0,96596.0,0.85848197]
[1739488134606,0.0001065,96597.0,96596.0,0.86548197]
[1739488135016,0.0001065,96597.0,96596.0,0.86048197]
[1739488135440,0.0001065,96597.0,96596.0,0.85848197]
[1739488135638,0.0001065,96597.0,96596.0,0.86048197]
[1739488136189,0.0001065,96597.0,96596.0,0.85348197]
[1739488136594,0.0001065,96597.0,96596.0,0.85848197]
[1739488136798,0.0001065,96597.0,96596.0,0.85348197]
[1739488137152,0.0001065,96597.0,96596.0,0.85848197]
[1739488138011,0.0001065,96597.0,96596.0,0.86548197]
[1739488138754,0.0001065,96597.0,96596.0,0.85848197]
[1739488139041,0.0001065,96597.0,96596.0,0.86048197]
[1739488139264,0.0001065,96597.0,96596.0,0.71119697]
[1739488139381,0.0001065,96597.0,96596.0,0.57009697]
[1739488139584,0.0001065,96597.0,96596.0,0.42009697]
[1739488139789,0.0001065,96597.0,96596.0,0.40072622]
[1739488139996,0.0001065,96597.0,96596.0,0.39472622]
[1739488141025,0.0001065,96597.0,96596.0,0.38772622]
[1739488141931,0.1553905,96597.0,96596.0,0.12970247]
[1739488142179,0.1553905,96597.0,96596.0,0.02719882]
[1739488142378,0.1553905,96597.0,96596.0,0.01419882]
[1739488142592,0.1553905,96597.0,96596.0,0.00022344]
[1739488142786,0.1553905,96597.0,96596.0,0.00822344]
[1739488142995,0.0001065,96597.0,96596.0,0.00422344]
[1739488143369,0.207039,96601.0,96596.0,0.01022344]
[1739488143567,0.207039,96601.0,96596.0,0.00422344]
[1739488143767,0.07422229,96603.0,96596.0,0.00422344]
[1739488143989,0.155282,96598.0,96596.0,0.00622344]
[1739488144201,0.207035,96602.0,96596.0,0.00622344]
[1739488144202,0.155284,96597.0,96596.0,0.00422344]
[1739488144340,0.155282,96598.0,96596.0,0.00422344]
[1739488144548,0.155278,96601.0,96596.0,0.00422344]
[1739488144771,0.155278,96601.0,96596.0,0.00022344]
[1739488145026,0.155278,96601.0,96596.0,0.00722344]
[1739488145282,0.00013181,96613.0,96597.0,0.10250365]
[1739488145484,0.155261,96611.0,96597.0,0.10250365]
[1739488145631,0.155265,96609.0,96598.0,0.01255105]
[1739488145839,0.155267,96608.0,96599.0,0.10250365]
[1739488146046,0.155266,96609.0,96599.0,0.10250365]
[1739488146419,0.0001064,96612.0,96599.0,0.10250365]
[1739488146626,0.155277,96601.0,96600.0,0.01255105]
[1739488146823,0.207034,96603.0,96596.0,0.00022344]
[1739488147029,0.155282,96599.0,96597.0,0.10250365]
[1739488147224,0.207034,96603.0,96597.0,0.10250365]
[1739488147427,0.155284,96597.0,96596.0,0.00022344]
[1739488148567,0.155281,96599.0,96596.0,0.00022344]
[1739488148770,0.155284,96597.0,96596.0,0.00022344]
[1739488149172,0.155284,96597.0,96596.0,0.00422344]
[1739488150063,0.155284,96597.0,96596.0,0.00722344]
[1739488150277,0.155284,96597.0,96596.0,0.00422344]
[1739488150560,0.282623,96608.0,96596.0,0.00622344]
[1739488151061,0.155274,96603.0,96596.0,0.00222344]
[1739488151270,0.155281,96599.0,96596.0,0.00022344]
[1739488151464,0.0001064,96612.0,96596.0,0.00222344]
[1739488151671,0.155284,96597.0,96596.0,0.00222344]
[1739488151896,0.0001064,96612.0,96596.0,0.00022344]
[1739488152101,0.0001064,96612.0,96602.0,0.155274]
[1739488152302,0.0001064,96612.0,96603.0,0.11504612]
[1739488152512,0.0001064,96612.0,96604.0,0.001035]
[1739488152721,0.0001064,96612.0,96596.0,0.00022344]
[1739488152940,0.0001064,96612.0,96597.0,0.10250365]
[1739488153488,0.155273,96604.0,96597.0,0.10250365]
[1739488153695,0.155278,96601.0,96597.0,0.10250365]
[1739488153894,0.155279,96600.0,96597.0,0.10250365]
[1739488154306,0.155277,96601.0,96597.0,0.10250365]
[1739488154505,0.0001064,96612.0,96597.0,0.10250365]
[1739488154702,0.00013181,96613.0,96597.0,0.10250365]
[1739488154703,0.155281,96599.0,96597.0,0.10250365]
[1739488154945,0.155281,96599.0,96597.0,0.10263546]
[1739488155156,0.207011,96614.0,96597.0,0.10263546]
[1739488155568,0.155276,96602.0,96597.0,0.10363546]
[1739488155778,0.155278,96601.0,96597.0,0.10363546]
[1739488155982,0.15528,96600.0,96597.0,0.10263546]
[1739488156203,0.207015,96611.0,96597.0,0.10363546]
[1739488156408,0.155281,96599.0,96597.0,0.10263546]
[1739488156608,0.155281,96599.0,96597.0,0.10363546]
[1739488156820,0.155282,96598.0,96597.0,0.10363546]
[1739488156972,0.155282,96598.0,96597.0,0.10263546]
[1739488157711,0.155282,96598.0,96597.0,0.10363546]
[1739488158003,0.207015,96611.0,96597.0,0.10463546]
[1739488158167,0.155282,96599.0,96597.0,0.10363546]
[1739488158369,0.155282,96598.0,96597.0,0.10363546]
[1739488158593,0.155282,96598.0,96597.0,0.10563546]
[1739488158969,0.155282,96598.0,96597.0,0.10263546]
[1739488159151,0.207015,96611.0,96597.0,0.10363546]
[1739488159357,0.207015,96611.0,96597.0,0.10463546]
[1739488159599,0.155279,96600.0,96597.0,0.10463546]
[1739488159911,0.207015,96611.0,96597.0,0.10463546]
[1739488160069,0.155281,96599.0,96597.0,0.10363546]
[1739488160480,0.155281,96599.0,96597.0,0.10263546]
[1739488160893,0.155281,96599.0,96597.0,0.10563546]
[1739488161403,0.155282,96598.0,96597.0,0.00113181]
[1739488161612,0.155282,96598.0,96597.0,0.00213181]
[1739488162162,0.232382,96598.0,96597.0,0.00113181]
[1739488162533,0.232382,96598.0,96597.0,0.00013181]
[1739488162944,0.232382,96598.0,96597.0,0.00113181]
[1739488163645,0.232382,96598.0,96597.0,0.00313181]
[1739488165339,0.155282,96598.0,96597.0,0.00313181]
[1739488167690,0.155282,96598.0,96597.0,0.00335546]
[1739488170382,0.207028,96605.0,96597.0,0.00335546]
[1739488170383,0.09250327,96617.0,96597.0,0.10585911]
[1739488170691,0.207008,96615.0,96598.0,0.01259822]
[1739488170893,0.155273,96604.0,96598.0,0.01259822]
[1739488171095,0.207023,96608.0,96599.0,0.10250365]
[1739488171297,0.1282,96627.0,96599.0,0.10250365]
[1739488171475,0.1282,96627.0,96608.0,0.155265]
[1739488171686,0.1282,96627.0,96609.0,0.01258577]
[1739488171898,0.1553665,96612.0,96599.0,0.10250365]
[1739488172094,0.0001065,96612.0,96604.0,0.155271]
[1739488172341,0.155262,96611.0,96605.0,0.11508942]
[1739488172543,0.0001065,96612.0,96607.0,0.155267]
[1739488172725,0.1553665,96612.0,96607.0,0.10250365]
[1739488173118,0.0001065,96612.0,96608.0,0.01258577]
[1739488173499,0.1553675,96612.0,96608.0,0.01258577]
[1739488173704,0.155261,96611.0,96608.0,0.01258577]
[1739488174125,0.0001065,96612.0,96609.0,0.30952165]
[1739488174322,0.0001065,96612.0,96611.0,0.155261]
[1739488174526,0.1553665,96612.0,96611.0,0.01258577]
[1739488174688,0.0001065,96612.0,96602.0,0.207034]
[1739488174889,0.2071215,96612.0,96604.0,0.155272]
[1739488175121,0.2071215,96612.0,96605.0,0.10250365]
[1739488175324,0.155264,96610.0,96606.0,0.01258577]
[1739488175622,0.155265,96609.0,96607.0,0.10250365]
[1739488176042,0.155265,96609.0,96608.0,0.0125423]
[1739488176450,0.0001065,96612.0,96597.0,0.00035546]
[1739488176622,0.1553665,96612.0,96607.0,0.155267]
[1739488176784,0.1553665,96612.0,96609.0,0.20702]
[1739488176785,0.0001065,96612.0,96609.0,0.20702]
[1739488176985,0.0001065,96612.0,96611.0,0.155261]
[1739488177187,0.0001065,96612.0,96611.0,0.25776465]
[1739488177644,0.0001065,96612.0,96611.0,0.27027675]
[1739488178022,0.155242,96624.0,96618.0,0.15525]
[1739488178222,0.206985,96626.0,96616.0,0.207003]
[1739488178426,0.155243,96623.0,96617.0,0.25775565]
[1739488178701,0.155243,96623.0,96617.0,0.27026775]
[1739488178904,0.206985,96625.0,96617.0,0.11501575]
[1739488179168,0.206985,96625.0,96617.0,0.27026675]
[1739488179362,0.155243,96623.0,96617.0,0.27026675]
[1739488179911,0.155244,96622.0,96617.0,0.11501575]
[1739488180066,0.155241,96624.0,96618.0,0.15525]
[1739488180265,0.155241,96624.0,96617.0,0.11501575]
[1739488180266,0.20719287,96633.0,96617.0,0.10250365]
[1739488180608,0.155246,96621.0,96618.0,0.0125121]
[1739488180788,0.01048022,96632.0,96618.0,0.0125121]
[1739488181002,0.155248,96619.0,96618.0,0.0125121]
[1739488181226,0.15525,96618.0,96617.0,0.10450365]
[1739488182283,0.23535,96618.0,96617.0,0.001]
[1739488182485,0.155266,96608.0,96607.0,0.00022365]
[1739488182808,0.155266,96608.0,96607.0,0.01273575]
[1739488183018,0.155266,96608.0,96607.0,0.00022365]
[1739488183244,0.207012,96613.0,96607.0,0.00022365]
[1739488183452,0.207004,96617.0,96607.0,0.00022365]
[1739488184048,0.155264,96610.0,96607.0,0.00022365]
[1739488184256,0.155261,96612.0,96608.0,0.0125121]
[1739488184877,0.20701,96614.0,96608.0,0.0125121]
[1739488185097,0.155261,96611.0,96608.0,0.0125121]
[1739488185906,0.155257,96614.0,96608.0,0.1677771]
[1739488186110,0.155257,96614.0,96609.0,0.155264]
[1739488186305,0.0801,96618.0,96607.0,0.00022365]
[1739488186526,0.207006,96616.0,96608.0,0.0165121]
[1739488186736,0.155257,96614.0,96608.0,0.1697781]
[1739488186933,0.155257,96614.0,96608.0,0.1707781]
[1739488187136,0.155259,96613.0,96608.0,0.1707781]
[1739488187312,0.155259,96613.0,96608.0,0.1697781]
[1739488187615,0.155259,96613.0,96609.0,0.155264]
[1739488187838,0.207008,96615.0,96609.0,0.155264]
[1739488188050,0.155255,96615.0,96610.0,0.16777089]
[1739488188248,0.20699,96623.0,96610.0,0.01250889]
[1739488188622,0.20699,96623.0,96610.0,0.16777189]
[1739488188822,0.155256,96615.0,96610.0,0.155263]
[1739488189029,0.20699,96623.0,96611.0,0.01250889]
[1739488189407,0.15526,96612.0,96607.0,0.15549065]
[1739488189645,0.15526,96612.0,96609.0,0.001]
[1739488190209,0.15526,96612.0,96610.0,0.01250889]
[1739488191055,0.207007,96616.0,96610.0,0.01250889]
[1739488191462,0.0766,96624.0,96610.0,0.01250889]
[1739488191676,0.155256,96615.0,96610.0,0.16777189]
[1739488192057,0.0766,96624.0,96611.0,0.155261]
[1739488192229,0.155254,96616.0,96611.0,0.155261]
[1739488192548,0.155254,96616.0,96612.0,0.01250889]
[1739488194019,0.155254,96616.0,96612.0,0.01350889]
[1739488194385,0.155252,96617.0,96612.0,0.16876889]
[1739488194541,0.155252,96617.0,96612.0,0.16976889]
[1739488194939,0.15525,96619.0,96613.0,0.155258]
[1739488195265,0.0001065,96626.0,96613.0,0.155258]
[1739488195468,0.155251,96618.0,96614.0,0.01250889]
[1739488195785,0.155251,96618.0,96613.0,0.155258]
[1739488195989,0.206997,96620.0,96608.0,0.20724465]
[1739488196169,0.155249,96619.0,96614.0,0.155256]
[1739488196490,0.155249,96619.0,96614.0,0.155255]
[1739488196790,0.155249,96619.0,96615.0,0.01250889]
[1739488197264,0.0001065,96626.0,96615.0,0.01250889]
[1739488197491,0.15525,96618.0,96615.0,0.01250889]
[1739488197870,0.15525,96618.0,96613.0,0.155258]
[1739488198075,0.206997,96620.0,96616.0,0.01250889]
[1739488198214,0.206997,96620.0,96615.0,0.155255]
[1739488198413,0.155247,96620.0,96617.0,0.01250889]
[1739488198635,0.155247,96620.0,96616.0,0.155253]
[1739488199177,0.155247,96620.0,96617.0,0.01250889]
[1739488199593,0.206985,96625.0,96617.0,0.01250889]
[1739488199816,0.206985,96625.0,96615.0,0.155255]
[1739488199995,0.155248,96619.0,96618.0,0.01250889]
[1739488200194,0.155255,96615.0,96610.0,0.207016]
[1739488200395,0.207002,96618.0,96608.0,0.00022365]
[1739488200625,0.155254,96616.0,96611.0,0.16776989]
[1739488200802,0.155254,96616.0,96612.0,0.15526]
[1739488201052,0.15525,96619.0,96612.0,0.01250889]
[1739488201257,0.0001065,96626.0,96612.0,0.01250889]
[1739488201258,0.0001065,96626.0,96625.0,0.155239]
[1739488201465,0.0001065,96626.0,96618.0,0.0453]
[1739488201664,0.0001065,96626.0,96625.0,0.01248326]
[1739488201795,0.0001065,96626.0,96619.0,0.10250365]
[1739488201999,0.0001065,96626.0,96625.0,0.01248326]
[1739488202345,0.0001065,96626.0,96606.0,0.0453]
[1739488202545,0.155256,96615.0,96606.0,0.0453]
[1739488202868,0.155255,96616.0,96606.0,0.0453]
[1739488202999,0.155256,96615.0,96606.0,0.0453]
[1739488203218,0.155254,96616.0,96606.0,0.0453]
[1739488203871,0.155251,96618.0,96606.0,0.0453]
[1739488204051,0.155254,96616.0,96606.0,0.0453]
[1739488204256,0.155265,96609.0,96604.0,0.0757]
[1739488204448,0.155265,96609.0,96598.0,0.0466]
[1739488204660,0.155265,96609.0,96608.0,0.00022365]
[1739488205588,0.155265,96609.0,96608.0,0.00222365]
[1739488206003,0.155265,96609.0,96608.0,0.00522365]
[1739488207991,0.155265,96609.0,96608.0,0.00222365]
[1739488208508,0.155265,96609.0,96608.0,0.00022365]
[1739488208883,0.202865,96609.0,96608.0,0.00022365]
[1739488209082,0.202865,96609.0,96597.0,0.00035546]
[1739488209083,0.382566,96608.0,96607.0,3e-07]
[1739488209410,0.50806965,96608.0,96607.0,3e-07]
[1739488211230,0.50806965,96608.0,96607.0,0.0010003]
[1739488212391,0.50806965,96608.0,96607.0,0.0020003]
[1739488212598,0.50806965,96608.0,96607.0,0.0010003]
[1739488212890,0.50906965,96608.0,96607.0,0.0020003]
[1739488213472,0.83546965,96608.0,96607.0,0.0020003]
[1739488214343,0.155308,96582.0,96581.0,0.00962781]
[1739488214771,0.155319,96575.0,96574.0,6.5e-07]
[1739488214988,0.155319,96575.0,96574.0,0.01886489]
[1739488215186,0.155319,96575.0,96574.0,6.5e-07]
[1739488215368,0.155319,96575.0,96574.0,0.01886489]
[1739488215601,0.1651674,96575.0,96574.0,6.5e-07]
[1739488215981,0.1651674,96575.0,96574.0,0.00444037]
[1739488217180,0.1651674,96575.0,96574.0,0.00944037]
[1739488217731,0.1651674,96575.0,96574.0,0.00444037]
[1739488218235,0.1651674,96575.0,96574.0,0.00744037]
[1739488219240,0.155319,96575.0,96574.0,0.00344037]
[1739488219598,0.155319,96575.0,96574.0,0.00544037]
[1739488219796,0.155319,96575.0,96574.0,0.00344037]
[1739488219994,0.155317,96577.0,96574.0,0.00344037]
[1739488220182,0.155319,96575.0,96574.0,0.00544037]
[1739488220841,0.155319,96575.0,96574.0,0.00044037]
[1739488221217,0.155319,96575.0,96574.0,0.00244037]
[1739488221416,0.155319,96575.0,96574.0,0.00344037]
[1739488222261,0.155319,96575.0,96574.0,0.00144037]
[1739488222666,0.155319,96575.0,96574.0,0.00344037]
[1739488222866,0.155319,96575.0,96574.0,0.00544037]
[1739488229319,0.155319,96575.0,96574.0,0.00244037]
[1739488229523,0.305319,96575.0,96574.0,0.00244037]
[1739488229721,0.40782265,96575.0,96574.0,3.7e-07]
[1739488229950,0.156319,96575.0,96574.0,3.7e-07]
[1739488231568,0.155342,96561.0,96560.0,0.07490888]
[1739488231726,0.155342,96561.0,96560.0,0.09399317]
[1739488231927,0.155342,96561.0,96560.0,0.01908429]
[1739488232133,0.207118,96563.0,96555.0,0.049]
[1739488232348,0.15535,96556.0,96555.0,0.049]
[1739488233436,0.207108,96568.0,96555.0,0.051]
[1739488233613,0.207108,96568.0,96556.0,0.10250365]
[1739488233989,0.207108,96568.0,96557.0,0.01270304]
[1739488234202,0.155347,96558.0,96557.0,0.01270304]
[1739488234729,0.155348,96557.0,96556.0,0.10250365]
[1739488235646,0.17466248,96557.0,96556.0,0.10250365]
[1739488235927,0.17466248,96557.0,96555.0,0.054]
[1739488235928,0.15535,96556.0,96555.0,0.005]
[1739488236363,0.155354,96554.0,96546.0,0.155366]
[1739488236535,0.155354,96554.0,96547.0,0.10250365]
[1739488237945,0.155354,96554.0,96547.0,0.10450365]
[1739488238645,0.155354,96554.0,96547.0,0.25986665]
[1739488238851,0.0001066,96560.0,96551.0,0.155357]
[1739488239108,0.0001066,96560.0,96558.0,0.155345]
[1739488239565,0.0001066,96560.0,96556.0,0.207132]
[1739488239566,0.0001066,96560.0,96559.0,0.01273863]
[1739488239778,0.0001066,96560.0,96557.0,0.155348]
[1739488239994,0.0001066,96560.0,96558.0,0.01273863]
[1739488240373,0.0001066,96560.0,96559.0,0.33634865]
[1739488240579,0.0011066,96560.0,96559.0,0.33634865]
[1739488240825,0.0011066,96560.0,96559.0,0.34908728]
[1739488241272,0.0001066,96560.0,96559.0,0.34908728]
[1739488241472,0.0001066,96560.0,96559.0,0.39728728]
[1739488241590,0.0001066,96560.0,96559.0,0.54728728]
[1739488242558,0.0001066,96560.0,96559.0,0.39194228]
[1739488242715,0.0001066,96560.0,96559.0,0.55228728]
[1739488243330,0.0001066,96560.0,96559.0,0.40828728]
[1739488243555,0.0001066,96560.0,96559.0,0.40328728]
[1739488243776,0.0001066,96560.0,96559.0,0.40028728]
[1739488244128,0.0001066,96560.0,96559.0,0.40228728]
[1739488244730,0.0001066,96560.0,96559.0,0.43460763]
[1739488245089,0.0001066,96560.0,96559.0,0.40228728]
[1739488245310,0.0001066,96560.0,96559.0,0.40628728]
[1739488245470,0.0001066,96560.0,96559.0,0.40128728]
[1739488245670,0.0001066,96560.0,96559.0,0.39728728]
[1739488245877,0.0001066,96560.0,96559.0,0.40728728]
[1739488248558,0.0001066,96560.0,96559.0,0.40128728]
[1739488249212,0.0001066,96560.0,96559.0,0.39728728]
[1739488249436,0.0001066,96560.0,96559.0,0.40028728]
[1739488249740,0.0001066,96560.0,96559.0,0.40228728]
[1739488250151,0.0001066,96560.0,96559.0,0.40628728]
[1739488250353,0.0001066,96560.0,96559.0,0.40651114]
[1739488254610,0.0001066,96560.0,96559.0,0.40151114]
[1739488254778,0.0001066,96560.0,96559.0,0.40651114]
[1739488255193,0.0001066,96560.0,96559.0,0.40251114]
[1739488255585,0.0001066,96560.0,96559.0,0.40651114]
[1739488256758,0.0001066,96560.0,96559.0,0.32801114]
[1739488258516,0.0001066,96560.0,96559.0,0.17266614]
[1739488259340,0.0001066,96560.0,96559.0,0.16366614]
[1739488259515,0.0001066,96560.0,96559.0,0.16766614]
[1739488259852,0.0001066,96560.0,96559.0,0.17066614]
[1739488260250,0.0001066,96560.0,96559.0,0.01996249]
[1739488260422,0.0001066,96560.0,96559.0,0.01696249]
[1739488260580,0.0001066,96560.0,96559.0,0.03177033]
[1739488260796,0.0001066,96560.0,96559.0,0.02777033]
[1739488261334,0.01947018,96560.0,96559.0,0.03077033]
[1739488261758,0.01947018,96560.0,96559.0,0.18511533]
[1739488261957,0.01947018,96560.0,96559.0,0.02777033]
[1739488262154,0.01947018,96560.0,96559.0,0.03077033]
[1739488262451,0.01947018,96560.0,96559.0,0.02977033]
[1739488262671,0.01947018,96560.0,96559.0,0.02777033]
[1739488262900,0.01947018,96560.0,96559.0,0.03277033]
[1739488263061,0.01947018,96560.0,96559.0,0.03577033]
[1739488263258,0.01947018,96560.0,96559.0,0.03277033]
[1739488263482,0.17481318,96560.0,96559.0,0.03477033]
[1739488263635,0.17481318,96560.0,96559.0,0.00722386]
[1739488264128,0.24981318,96560.0,96559.0,0.00222386]
[1739488264281,0.24981318,96560.0,96559.0,0.00522386]
[1739488264679,0.24981318,96560.0,96559.0,0.00322386]
[1739488264881,0.24981318,96560.0,96559.0,0.00022386]
[1739488265587,0.2304496,96560.0,96559.0,0.00022386]
[1739488267836,0.249793,96560.0,96559.0,0.00022386]
[1739488270248,0.50229665,96560.0,96559.0,0.00022386]
[1739488270809,0.399793,96560.0,96559.0,0.00022386]
[1739488272142,0.400793,96560.0,96559.0,0.00022386]
[1739488278868,0.43169449,96560.0,96559.0,0.00022386]
[1739488279340,0.41886628,96560.0,96559.0,0.00022386]
[1739488285130,0.41897278,96560.0,96559.0,0.00022386]
[1739488290183,0.52147643,96560.0,96559.0,0.00022386]
[1739488291103,0.54447643,96560.0,96559.0,8.6e-07]
[1739488291602,0.87087643,96560.0,96559.0,8.6e-07]
[1739488292024,0.86987643,96560.0,96559.0,8.6e-07]
[1739488292223,0.87087643,96560.0,96559.0,8.6e-07]
[1739488293067,0.87687643,96560.0,96559.0,0.00100086]
[1739488294565,0.87687643,96560.0,96559.0,8.6e-07]
[1739488295407,0.84597494,96560.0,96559.0,8.6e-07]
[1739488296186,0.84597494,96560.0,96559.0,0.00022451]
[1739488297239,0.84597494,96560.0,96559.0,5.1e-07]
[1739488317027,0.305364,96547.0,96546.0,0.00022386]
[1739488318170,0.3277074,96547.0,96546.0,0.00022386]
[1739488319623,0.3297074,96547.0,96546.0,0.00022386]
[1739488321107,0.36073689,96547.0,96546.0,0.00022386]
[1739488322252,0.3297074,96547.0,96546.0,0.00022386]
[1739488326618,0.43221105,96547.0,96546.0,0.00022386]
[1739488326853,0.90471105,96547.0,96546.0,8.6e-07]
[1739488327062,0.93574219,96547.0,96546.0,8.6e-07]
[1739488327641,0.93274219,96547.0,96546.0,8.6e-07]
[1739488327845,0.93274219,96547.0,96517.0,0.0001066]
[1739488327846,0.173,96546.0,96517.0,0.0001066]
[1739488328051,0.155411,96518.0,96517.0,0.0001066]
[1739488328431,0.09480916,96527.0,96517.0,0.0001066]
[1739488328630,0.207201,96525.0,96518.0,0.0751]
[1739488328827,0.155409,96519.0,96518.0,0.0751]
[1739488329050,0.155409,96519.0,96518.0,0.07519176]
[1739488329976,0.1747524,96519.0,96518.0,0.07519176]
[1739488330120,0.0193434,96519.0,96518.0,0.07519176]
[1739488330316,0.0193434,96519.0,96518.0,0.09843599]
[1739488330743,0.1747524,96519.0,96518.0,0.09843599]
[1739488331034,0.0193434,96519.0,96518.0,0.09843599]
[1739488331209,0.1747524,96519.0,96518.0,0.07519176]
[1739488331365,0.1747524,96519.0,96518.0,0.09843599]
[1739488331783,0.1747524,96519.0,96518.0,0.07519176]
[1739488332026,0.1747524,96519.0,96518.0,0.07529826]
[1739488334911,0.0193434,96519.0,96518.0,0.07529826]
[1739488335446,0.0193434,96519.0,96518.0,0.23070926]
[1739488335649,0.0123926,96527.0,96519.0,0.0788]
[1739488335860,0.01623297,96548.0,96521.0,0.0788]
[1739488336064,0.155373,96542.0,96523.0,0.0788]
[1739488336387,0.09512232,96546.0,96536.0,0.0784]
[1739488336388,0.01229715,96546.0,96536.0,0.0784]
[1739488336594,0.13995451,96554.0,96540.0,0.0784]